fUST/lending_fUST_20250326
["ID","MTS","AMOUNT","RATE_DAILY","PERIOD"]
[356661302,1742928632126,-500.0,0.00012068,2]
[356661303,1742928632135,-7509.7,0.00012068,2]
[356661304,1742928632145,-6805.87,0.00012068,2]
[356661305,1742928632154,-500.0,0.00012068,2]
[356661306,1742928632165,-500.0,0.00012068,2]
[356661307,1742928632174,-500.0,0.00012068,2]
[356661308,1742928632183,-500.0,0.00012068,2]
[356661309,1742928632192,-500.0,0.00012068,2]
[356661310,1742928632201,-2167.2,0.00012068,2]
[356661311,1742928632210,-2141.39,0.00012068,2]
[356661312,1742928632219,-548.0,0.00012068,2]
[356661313,1742928632228,-2017.42,0.00012068,2]
[356661314,1742928632238,-613.47,0.00012068,2]
[356661315,1742928632247,-500.0,0.00012068,2]
[356661316,1742928632256,-1848.98,0.00012068,2]
[356661317,1742928632265,-670.26,0.00012068,2]
[356661318,1742928632274,-500.17,0.00012068,2]
[356661319,1742928632283,-500.0,0.00012068,2]
[356661320,1742928632293,-922.95,0.00012068,2]
[356661321,1742928632302,-500.0,0.00012068,2]
[356661322,1742928632311,-1026.84,0.00012068,2]
[356661323,1742928632320,-623.74,0.00012068,2]
[356661324,1742928632329,-1817.23,0.00012068,2]
[356661325,1742928632338,-5962.33,0.00012068,2]
[356661326,1742928632347,-500.0,0.00012068,2]
[356661327,1742928632356,-500.0,0.00012068,2]
[356661328,1742928632365,-208.18206317,0.00012068,2]
[356661329,1742928632375,-500.0,0.00012068,2]
[356661330,1742928632384,-857.84,0.00012068,2]
[356661331,1742928632393,-4281.75,0.00012068,2]
[356661332,1742928632402,-500.0,0.00012068,2]
[356661333,1742928632412,-500.0,0.00012068,2]
[356661334,1742928632421,-829.05,0.00012068,2]
[356661335,1742928632430,-930.7,0.00012068,2]
[356661336,1742928632439,-511.67368085,0.00012068,2]
[356661337,1742928632448,-500.0,0.00012068,2]
[356661338,1742928632457,-500.0,0.00012068,2]
[356661339,1742928632466,-500.0,0.00012068,2]
[356661340,1742928632475,-1361.81,0.00012068,2]
[356661341,1742928632484,-500.0,0.00012069,2]
[356661342,1742928632493,-500.0,0.00012069,2]
[356661343,1742928632502,-320.96258548,0.00012069,2]
[356661344,1742928632511,-500.0,0.00012069,2]
[356661345,1742928632520,-500.0,0.00012069,2]
[356661346,1742928632529,-256.74747021,0.00012069,2]
[356661347,1742928632539,-575.72,0.00012069,2]
[356661348,1742928632547,-500.0,0.00012069,2]
[356661349,1742928632557,-500.0,0.00012069,2]
[356661350,1742928632565,-500.0,0.00012069,2]
[356661351,1742928632575,-500.0,0.00012069,2]
[356661352,1742928632584,-500.0,0.00012069,2]
[356661353,1742928632593,-620.8,0.00012069,2]
[356661354,1742928632603,-500.0,0.00012069,2]
[356661355,1742928632612,-500.0,0.00012069,2]
[356661356,1742928632622,-500.0,0.00012069,2]
[356661357,1742928632631,-500.0,0.00012069,2]
[356661358,1742928632641,-378.44492685,0.00012069,2]
[356661359,1742928632650,-500.0,0.00012069,2]
[356661360,1742928632660,-925.62,0.00012069,2]
[356661361,1742928632670,-532.89,0.00012069,2]
[356661362,1742928632683,-500.0,0.00012069,2]
[356661363,1742928632693,-500.0,0.00012069,2]
[356661364,1742928632703,-500.0,0.00012069,2]
[356661365,1742928632714,-500.0,0.00012069,2]
[356661366,1742928632723,-500.0,0.00012069,2]
[356661367,1742928632733,-500.0,0.00012069,2]
[356661368,1742928632742,-500.0,0.00012069,2]
[356661369,1742928632752,-500.0,0.00012069,2]
[356661370,1742928632763,-500.0,0.00012069,2]
[356661371,1742928632772,-500.0,0.00012069,2]
[356661372,1742928632782,-500.0,0.00012069,2]
[356661373,1742928632792,-500.0,0.00012069,2]
[356661374,1742928632802,-500.0,0.00012069,2]
[356661375,1742928632811,-500.0,0.00012069,2]
[356661376,1742928632821,-500.0,0.00012069,2]
[356661377,1742928632831,-500.0,0.00012069,2]
[356661378,1742928632840,-500.0,0.00012069,2]
[356661379,1742928632849,-500.0,0.00012069,2]
[356661380,1742928632858,-500.0,0.00012069,2]
[356661381,1742928632868,-500.0,0.00012069,2]
[356661382,1742928632878,-500.0,0.00012069,2]
[356661383,1742928632887,-547.01,0.00012069,2]
[356661384,1742928632896,-670.2,0.00012069,2]
[356661385,1742928632906,-500.0,0.00012069,2]
[356661386,1742928632918,-500.0,0.00012069,2]
[356661387,1742928632927,-500.0,0.00012069,2]
[356661388,1742928632936,-500.0,0.00012069,2]
[356661389,1742928632945,-500.0,0.00012069,2]
[356661390,1742928632955,-1329.24,0.00012069,2]
[356661391,1742928632965,-500.0,0.00012069,2]
[356661392,1742928632975,-7595.93,0.00012069,2]
[356661393,1742928632985,-500.0,0.00012069,2]
[356661394,1742928632994,-895.16,0.00012069,2]
[356661395,1742928633004,-500.0,0.00012069,2]
[356661396,1742928633014,-1463.48,0.00012069,2]
[356661397,1742928633024,-1653.64,0.00012069,2]
[356661398,1742928633033,-500.0,0.00012069,2]
[356661399,1742928633043,-500.0,0.00012069,2]
[356661400,1742928633065,-500.0,0.00012069,2]
[356661401,1742928633077,-2867.38,0.00012069,2]
[356661402,1742928633087,-3043.0,0.00012069,2]
[356661403,1742928633097,-503.38322909,0.00012069,2]
[356661404,1742928633108,-500.0,0.00012069,2]
[356661405,1742928633118,-644.79267944,0.00012069,2]
[356661406,1742928633129,-500.0,0.00012069,2]
[356661407,1742928633139,-500.0,0.00012069,2]
[356661408,1742928633149,-695.29,0.00012069,2]
[356661409,1742928633160,-670.87,0.00012069,2]
[356661410,1742928633170,-4315.87,0.00012069,2]
[356661411,1742928633181,-500.0,0.00012069,2]
[356661412,1742928633191,-500.0,0.00012069,2]
[356661413,1742928633201,-30849.77781843,0.00012069,2]
[356661414,1742928633217,-1481.76065796,0.00012069,2]
[356661415,1742928633229,-6333.67103448,0.00012069,2]
[356661416,1742928633241,-1647.01493304,0.00012069,2]
[356661417,1742928633253,-49280.48555609,0.00012069,2]
[356661418,1742928633264,-954.85,0.00012069,2]
[356661419,1742928633274,-500.0,0.00012069,2]
[356661420,1742928633285,-3018.93,0.00012069,2]
[356661421,1742928633295,-500.0,0.00012069,2]
[356661422,1742928633306,-500.0,0.00012069,2]
[356661423,1742928633316,-1278.83,0.00012069,2]
[356661424,1742928633325,-500.0,0.00012069,2]
[356661425,1742928633336,-1124.11,0.00012069,2]
[356661426,1742928633346,-500.0,0.00012069,2]
[356661427,1742928633356,-500.0,0.00012069,2]
[356661428,1742928633367,-500.0,0.00012069,2]
[356661429,1742928633377,-500.0,0.00012069,2]
[356661430,1742928633387,-500.0,0.00012069,2]
[356661431,1742928633397,-1317.32,0.00012069,2]
[356661432,1742928633407,-500.0,0.00012069,2]
[356661433,1742928633417,-4725.97,0.00012069,2]
[356661434,1742928633427,-500.0,0.00012069,2]
[356661435,1742928633437,-1433.14,0.00012069,2]
[356661436,1742928633448,-151.0,0.00012069,2]
[356661437,1742928633459,-1599.34,0.00012069,2]
[356661438,1742928633469,-1406.29,0.00012069,2]
[356661439,1742928633479,-1586.183801,0.0001207,2]
[356661440,1742928633490,-1586.183801,0.0001207,2]
[356661441,1742928633500,-2543.705079,0.0001207,2]
[356661442,1742928633511,-2543.705079,0.0001207,2]
[356661443,1742928633522,-155.250784,0.0001207,2]
[356661444,1742928633532,-383.82298876,0.00012071,2]
[356661445,1742928633542,-186.05,0.00012071,2]
[356661446,1742928633552,-605.59277274,0.00012071,2]
[356661447,1742928633562,-500.0,0.00012071,2]
[356661448,1742928633572,-500.0,0.00012071,2]
[356661449,1742928633582,-500.0,0.00012071,2]
[356661450,1742928633594,-500.0,0.00012071,2]
[356661451,1742928633603,-500.0,0.00012071,2]
[356661452,1742928633613,-277.39909949,0.00012071,2]
[356661453,1742928633623,-500.0,0.00012071,2]
[356661454,1742928633632,-500.0,0.00012071,2]
[356661455,1742928633642,-500.0,0.00012071,2]
[356661456,1742928633652,-544.72904843,0.00012071,2]
[356661457,1742928633662,-684.07,0.00012071,2]
[356661458,1742928633672,-500.0,0.00012071,2]
[356661459,1742928633686,-500.0,0.00012071,2]
[356661460,1742928633696,-500.0,0.00012071,2]
[356661461,1742928633706,-500.0,0.00012071,2]
[356661462,1742928633717,-500.0,0.00012071,2]
[356661463,1742928633727,-500.0,0.00012071,2]
[356661464,1742928633737,-681.24,0.00012071,2]
[356661465,1742928633748,-500.0,0.00012071,2]
[356661466,1742928633759,-500.0,0.00012071,2]
[356661467,1742928633768,-500.0,0.00012071,2]
[356661468,1742928633778,-500.0,0.00012071,2]
[356661469,1742928633788,-500.0,0.00012071,2]
[356661470,1742928633799,-500.0,0.00012071,2]
[356661471,1742928633810,-631.67,0.00012071,2]
[356661472,1742928633821,-657.64,0.00012071,2]
[356661473,1742928633830,-500.0,0.00012071,2]
[356661474,1742928633840,-500.0,0.00012071,2]
[356661475,1742928633850,-1068.41,0.00012071,2]
[356661476,1742928633860,-628.23,0.00012071,2]
[356661477,1742928633870,-657.1,0.00012071,2]
[356661478,1742928633879,-500.0,0.00012071,2]
[356661479,1742928633889,-500.0,0.00012071,2]
[356661480,1742928633900,-500.0,0.00012071,2]
[356661481,1742928633912,-500.0,0.00012071,2]
[356661482,1742928633922,-500.0,0.00012071,2]
[356661483,1742928633931,-500.0,0.00012071,2]
[356661484,1742928633941,-500.0,0.00012071,2]
[356661485,1742928633952,-500.0,0.00012071,2]
[356661486,1742928633962,-500.0,0.00012071,2]
[356661487,1742928633973,-500.0,0.00012071,2]
[356661488,1742928633983,-500.0,0.00012071,2]
[356661489,1742928633993,-595.75,0.00012071,2]
[356661490,1742928634003,-783.41,0.00012071,2]
[356661491,1742928634014,-500.0,0.00012071,2]
[356661492,1742928634024,-1213.87,0.00012071,2]
[356661493,1742928634034,-500.0,0.00012071,2]
[356661494,1742928634044,-500.0,0.00012071,2]
[356661495,1742928634054,-1046.19,0.00012071,2]
[356661496,1742928634064,-500.0,0.00012071,2]
[356661497,1742928634078,-500.0,0.00012071,2]
[356661498,1742928634089,-500.0,0.00012071,2]
[356661499,1742928634100,-2981.15,0.00012071,2]
[356661500,1742928634110,-176.339776,0.00012071,2]
[356661501,1742928634123,-500.0,0.00012071,2]
[356661502,1742928634133,-500.0,0.00012071,2]
[356661503,1742928634144,-151.0,0.00012071,2]
[356661504,1742928634155,-500.0,0.00012071,2]
[356661505,1742928634166,-151.0,0.00012071,2]
[356661506,1742928634175,-151.0,0.00012071,2]
[356661507,1742928634185,-500.0,0.00012071,2]
[356661508,1742928634195,-500.0,0.00012071,2]
[356661509,1742928634209,-500.0,0.00012071,2]
[356661510,1742928634219,-500.0,0.00012071,2]
[356661511,1742928634229,-592.82827133,0.00012071,2]
[356661512,1742928634239,-500.0,0.00012071,2]
[356661513,1742928634249,-500.0,0.00012071,2]
[356661514,1742928634259,-208.08274358,0.00012071,2]
[356661515,1742928634270,-500.0,0.00012071,2]
[356661516,1742928634280,-500.0,0.00012071,2]
[356661517,1742928634290,-753.15,0.00012071,2]
[356661518,1742928634300,-500.0,0.00012071,2]
[356661519,1742928634310,-500.0,0.00012071,2]
[356661520,1742928634320,-1586.183801,0.00012071,2]
[356661521,1742928634331,-500.0,0.00012071,2]
[356661522,1742928634341,-1586.183801,0.00012071,2]
[356661523,1742928634352,-532.99,0.00012071,2]
[356661524,1742928634362,-500.0,0.00012071,2]
[356661525,1742928634372,-2543.705079,0.00012071,2]
[356661526,1742928634382,-2543.705079,0.00012071,2]
[356661527,1742928634392,-2543.705079,0.00012071,2]
[356661528,1742928634402,-2543.705079,0.00012071,2]
[356661529,1742928634412,-151.0,0.00012074,2]
[356661530,1742928634422,-151.0,0.00012074,2]
[356661531,1742928634433,-151.0,0.00012074,2]
[356661532,1742928634442,-1586.183801,0.00012074,2]
[356661533,1742928634452,-1586.183801,0.00012074,2]
[356661534,1742928634462,-152.0,0.00012331,2]
[356661535,1742928634472,-151.0,0.00012337,2]
[356661536,1742928634482,-600.0,0.00012337,2]
[356661537,1742928634492,-500.0,0.00012342,2]
[356661538,1742928634502,-500.0,0.00012342,2]
[356661539,1742928634512,-500.0,0.00012342,2]
[356661540,1742928634522,-500.0,0.00012342,2]
[356661541,1742928634533,-500.0,0.00012342,2]
[356661542,1742928634543,-500.0,0.00012342,2]
[356661543,1742928634553,-610.3,0.00012342,2]
[356661544,1742928634562,-500.0,0.00012342,2]
[356661545,1742928634733,-857.63,0.00012342,2]
[356661546,1742928634743,-2533.45,0.00012342,2]
[356661547,1742928634753,-3375.25,0.00012342,2]
[356661548,1742928634764,-500.0,0.00012342,2]
[356661549,1742928634774,-500.0,0.00012342,2]
[356661550,1742928634783,-938.09,0.00012342,2]
[356661551,1742928634793,-500.0,0.00012342,2]
[356661552,1742928634802,-500.0,0.00012342,2]
[356661553,1742928634812,-500.0,0.00012342,2]
[356661554,1742928634821,-1122.77,0.00012342,2]
[356661555,1742928634831,-500.0,0.00012342,2]
[356661556,1742928634840,-500.0,0.00012342,2]
[356661557,1742928634851,-500.0,0.00012342,2]
[356661558,1742928634860,-500.0,0.00012342,2]
[356661559,1742928634870,-500.0,0.00012342,2]
[356661560,1742928634879,-500.0,0.00012342,2]
[356661561,1742928634889,-852.38,0.00012342,2]
[356661562,1742928634898,-2543.705079,0.00012342,2]
[356661563,1742928634908,-766.17,0.00012342,2]
[356661564,1742928634917,-500.0,0.00012342,2]
[356661565,1742928634927,-2543.705079,0.00012342,2]
[356661566,1742928634937,-500.0,0.00012342,2]
[356661567,1742928634946,-7509.7,0.00012342,2]
[356661568,1742928634956,-6805.87,0.00012342,2]
[356661569,1742928634965,-500.0,0.00012342,2]
[356661570,1742928634976,-500.0,0.00012342,2]
[356661571,1742928634986,-500.0,0.00012342,2]
[356661572,1742928634995,-500.0,0.00012342,2]
[356661573,1742928635005,-500.0,0.00012342,2]
[356661574,1742928635014,-2167.2,0.00012342,2]
[356661575,1742928635024,-2141.39,0.00012342,2]
[356661576,1742928635033,-548.0,0.00012342,2]
[356661577,1742928635043,-2017.42,0.00012342,2]
[356661578,1742928635052,-613.47,0.00012342,2]
[356661579,1742928635062,-500.0,0.00012342,2]
[356661580,1742928635072,-1848.98,0.00012342,2]
[356661581,1742928635081,-670.26,0.00012342,2]
[356661582,1742928635090,-500.17,0.00012342,2]
[356661583,1742928635100,-500.0,0.00012342,2]
[356661584,1742928635110,-922.95,0.00012342,2]
[356661585,1742928635119,-500.0,0.00012342,2]
[356661586,1742928635129,-1026.84,0.00012342,2]
[356661587,1742928635139,-1817.23,0.00012342,2]
[356661588,1742928635149,-5962.33,0.00012342,2]
[356661589,1742928635159,-500.0,0.00012342,2]
[356661590,1742928635168,-500.0,0.00012342,2]
[356661591,1742928635178,-857.84,0.00012342,2]
[356661592,1742928635187,-4281.75,0.00012342,2]
[356661593,1742928635196,-500.0,0.00012342,2]
[356661594,1742928635206,-500.0,0.00012342,2]
[356661595,1742928635215,-829.05,0.00012342,2]
[356661596,1742928635224,-930.7,0.00012342,2]
[356661597,1742928635233,-500.0,0.00012342,2]
[356661598,1742928635243,-500.0,0.00012342,2]
[356661599,1742928635252,-500.0,0.00012342,2]
[356661600,1742928635262,-1361.81,0.00012342,2]
[356661601,1742928635271,-500.0,0.00012343,2]
[356661602,1742928635281,-500.0,0.00012343,2]
[356661603,1742928635290,-500.0,0.00012343,2]
[356661604,1742928635299,-500.0,0.00012343,2]
[356661605,1742928635308,-575.72,0.00012343,2]
[356661606,1742928635318,-500.0,0.00012343,2]
[356661607,1742928635327,-500.0,0.00012343,2]
[356661608,1742928635337,-500.0,0.00012343,2]
[356661609,1742928635347,-500.0,0.00012343,2]
[356661610,1742928635356,-500.0,0.00012343,2]
[356661611,1742928635365,-620.8,0.00012343,2]
[356661612,1742928635375,-500.0,0.00012343,2]
[356661613,1742928635384,-500.0,0.00012343,2]
[356661614,1742928635394,-500.0,0.00012343,2]
[356661615,1742928635403,-500.0,0.00012343,2]
[356661616,1742928635412,-500.0,0.00012343,2]
[356661617,1742928635421,-925.62,0.00012343,2]
[356661618,1742928635431,-532.89,0.00012343,2]
[356661619,1742928635440,-500.0,0.00012343,2]
[356661620,1742928635450,-500.0,0.00012343,2]
[356661621,1742928635459,-500.0,0.00012343,2]
[356661622,1742928635468,-500.0,0.00012343,2]
[356661623,1742928635478,-500.0,0.00012343,2]
[356661624,1742928635488,-500.0,0.00012343,2]
[356661625,1742928635498,-500.0,0.00012343,2]
[356661626,1742928635507,-500.0,0.00012343,2]
[356661627,1742928635517,-500.0,0.00012343,2]
[356661628,1742928635526,-500.0,0.00012343,2]
[356661629,1742928635536,-500.0,0.00012343,2]
[356661630,1742928635546,-500.0,0.00012343,2]
[356661631,1742928635555,-500.0,0.00012343,2]
[356661632,1742928635565,-1586.183801,0.00012343,2]
[356661633,1742928635575,-1586.183801,0.00012343,2]
[356661634,1742928635584,-500.0,0.00012343,2]
[356661635,1742928635594,-1586.183801,0.00012343,2]
[356661636,1742928635603,-1586.183801,0.00012343,2]
[356661637,1742928635614,-500.0,0.00012343,2]
[356661638,1742928635623,-500.0,0.00012343,2]
[356661639,1742928635633,-500.0,0.00012343,2]
[356661640,1742928635642,-500.0,0.00012343,2]
[356661641,1742928635651,-500.0,0.00012343,2]
[356661642,1742928635661,-500.0,0.00012343,2]
[356661643,1742928635671,-547.01,0.00012343,2]
[356661644,1742928635684,-670.2,0.00012343,2]
[356661645,1742928635694,-500.0,0.00012343,2]
[356661646,1742928635703,-500.0,0.00012343,2]
[356661647,1742928635713,-500.0,0.00012343,2]
[356661648,1742928635723,-500.0,0.00012343,2]
[356661649,1742928635732,-1329.24,0.00012343,2]
[356661650,1742928635742,-500.0,0.00012343,2]
[356661651,1742928635751,-7595.93,0.00012343,2]
[356661652,1742928635763,-500.0,0.00012343,2]
[356661653,1742928635774,-895.16,0.00012343,2]
[356661654,1742928635783,-500.0,0.00012343,2]
[356661655,1742928635793,-1463.48,0.00012343,2]
[356661656,1742928635802,-1653.64,0.00012343,2]
[356661657,1742928635812,-500.0,0.00012343,2]
[356661658,1742928635822,-500.0,0.00012343,2]
[356661659,1742928635831,-500.0,0.00012343,2]
[356661660,1742928635841,-2867.38,0.00012343,2]
[356661661,1742928635850,-3043.0,0.00012343,2]
[356661662,1742928635860,-500.0,0.00012343,2]
[356661663,1742928635869,-500.0,0.00012343,2]
[356661664,1742928635878,-500.0,0.00012343,2]
[356661665,1742928635888,-2543.705079,0.00012343,2]
[356661666,1742928635897,-2543.705079,0.00012343,2]
[356661667,1742928635907,-2543.705079,0.00012343,2]
[356661668,1742928635916,-2543.705079,0.00012343,2]
[356661669,1742928635926,-695.29,0.00012343,2]
[356661670,1742928635935,-670.87,0.00012343,2]
[356661671,1742928635945,-4315.87,0.00012343,2]
[356661672,1742928635954,-500.0,0.00012343,2]
[356661673,1742928635963,-500.0,0.00012343,2]
[356661674,1742928635973,-13565.30349343,0.00012343,2]
[356661675,1742928635989,-76027.40650657,0.00012343,2]
[356661676,1742928636003,-954.85,0.00012343,2]
[356661677,1742928636012,-500.0,0.00012343,2]
[356661678,1742928636022,-3018.93,0.00012343,2]
[356661679,1742928636031,-500.0,0.00012343,2]
[356661680,1742928636041,-1278.83,0.00012343,2]
[356661681,1742928636050,-500.0,0.00012343,2]
[356661682,1742928636059,-1124.11,0.00012343,2]
[356661683,1742928636069,-500.0,0.00012343,2]
[356661684,1742928636078,-500.0,0.00012343,2]
[356661685,1742928636088,-500.0,0.00012343,2]
[356661686,1742928636097,-500.0,0.00012343,2]
[356661687,1742928636106,-500.0,0.00012343,2]
[356661688,1742928636116,-1317.32,0.00012343,2]
[356661689,1742928636129,-500.0,0.00012343,2]
[356661690,1742928636138,-4725.97,0.00012343,2]
[356661691,1742928636147,-500.0,0.00012343,2]
[356661692,1742928636157,-1433.14,0.00012343,2]
[356661693,1742928636166,-1599.34,0.00012343,2]
[356661694,1742928636175,-1406.29,0.00012343,2]
[356661695,1742928636185,-151.0,0.00012344,2]
[356661696,1742928636194,-151.0,0.00012344,2]
[356661697,1742928636204,-151.0,0.00012344,2]
[356661698,1742928636213,-151.0,0.00012344,2]
[356661699,1742928636223,-151.0,0.00012344,2]
[356661700,1742928636232,-293.5103,0.00012344,2]
[356661701,1742928636242,-1586.183801,0.00012344,2]
[356661702,1742928636251,-1586.183801,0.00012344,2]
[356661703,1742928636260,-1586.183801,0.00012344,2]
[356661704,1742928636270,-1586.183801,0.00012344,2]
[356661705,1742928636280,-2543.705079,0.00012344,2]
[356661706,1742928636289,-2085.27234425,0.00012344,2]
[356661707,1742928636301,-458.43273475,0.00012344,2]
[356661708,1742928636311,-500.0,0.00012345,2]
[356661709,1742928636320,-500.0,0.00012345,2]
[356661710,1742928636330,-500.0,0.00012345,2]
[356661711,1742928636340,-500.0,0.00012345,2]
[356661712,1742928636349,-500.0,0.00012345,2]
[356661713,1742928636359,-355.86035161,0.00012345,2]
[356661847,1742928642944,-500.0,0.00012068,2]
[356661848,1742928642954,-500.0,0.00012068,2]
[356661849,1742928642964,-1218.47,0.00012068,2]
[356661850,1742928642974,-500.0,0.00012342,2]
[356661851,1742928642985,-500.0,0.00012342,2]
[356661852,1742928642995,-1218.47,0.00012342,2]
[356661853,1742928643005,-328.20964839,0.00012345,2]
[356661854,1742928643017,-500.0,0.00012345,2]
[356661855,1742928643027,-500.0,0.00012345,2]
[356661856,1742928643036,-500.0,0.00012345,2]
[356661857,1742928643046,-500.0,0.00012345,2]
[356661859,1742928643056,-376.25647353,0.00012345,2]
[356661868,1742928645929,-500.0,0.00012068,2]
[356661869,1742928645939,-500.0,0.00012342,2]
[356661870,1742928645948,-304.98352647,0.00012345,2]
[356661871,1742928645959,-500.0,0.00012345,2]
[356661872,1742928645968,-500.0,0.00012345,2]
[356661873,1742928645980,-500.0,0.00012345,2]
[356661874,1742928645989,-500.0,0.00012345,2]
[356661875,1742928645998,-500.0,0.00012345,2]
[356661876,1742928646008,-631.67,0.00012345,2]
[356661877,1742928646018,-657.64,0.00012345,2]
[356661878,1742928646027,-500.0,0.00012345,2]
[356661879,1742928646037,-500.0,0.00012345,2]
[356661880,1742928646046,-1068.41,0.00012345,2]
[356661881,1742928646056,-628.23,0.00012345,2]
[356661882,1742928646065,-657.1,0.00012345,2]
[356661883,1742928646075,-500.0,0.00012345,2]
[356661884,1742928646084,-500.0,0.00012345,2]
[356661885,1742928646094,-500.0,0.00012345,2]
[356661886,1742928646104,-500.0,0.00012345,2]
[356661887,1742928646113,-500.0,0.00012345,2]
[356661888,1742928646122,-500.0,0.00012345,2]
[356661889,1742928646131,-500.0,0.00012345,2]
[356661890,1742928646140,-500.0,0.00012345,2]
[356661891,1742928646150,-500.0,0.00012345,2]
[356661892,1742928646159,-500.0,0.00012345,2]
[356661893,1742928646169,-500.0,0.00012345,2]
[356661894,1742928646180,-595.75,0.00012345,2]
[356661895,1742928646189,-783.41,0.00012345,2]
[356661896,1742928646198,-238.42683363,0.00012345,2]
[356661897,1742928646207,-1213.87,0.00012345,2]
[356661898,1742928646216,-500.0,0.00012345,2]
[356661899,1742928646225,-500.0,0.00012345,2]
[356661900,1742928646235,-1046.19,0.00012345,2]
[356661901,1742928646244,-500.0,0.00012345,2]
[356661902,1742928646253,-500.0,0.00012345,2]
[356661903,1742928646262,-500.0,0.00012345,2]
[356661904,1742928646272,-2981.15,0.00012345,2]
[356661905,1742928646281,-500.0,0.00012345,2]
[356661906,1742928646291,-500.0,0.00012345,2]
[356661907,1742928646300,-151.0,0.00012345,2]
[356661908,1742928646310,-151.0,0.00012345,2]
[356661909,1742928646319,-500.0,0.00012345,2]
[356661910,1742928646329,-151.0,0.00012345,2]
[356661911,1742928646339,-151.0,0.00012345,2]
[356661912,1742928646350,-500.0,0.00012345,2]
[356661913,1742928646359,-500.0,0.00012345,2]
[356661914,1742928646369,-500.0,0.00012345,2]
[356661915,1742928646378,-500.0,0.00012345,2]
[356661916,1742928646387,-500.0,0.00012345,2]
[356661917,1742928646397,-500.0,0.00012345,2]
[356661918,1742928646407,-500.0,0.00012345,2]
[356661919,1742928646416,-500.0,0.00012345,2]
[356661920,1742928646427,-753.15,0.00012345,2]
[356661921,1742928646438,-500.0,0.00012345,2]
[356661922,1742928646447,-500.0,0.00012345,2]
[356661923,1742928646456,-1586.183801,0.00012345,2]
[356661924,1742928646466,-500.0,0.00012345,2]
[356661925,1742928646476,-1586.183801,0.00012345,2]
[356661926,1742928646485,-532.99,0.00012345,2]
[356661927,1742928646494,-500.0,0.00012345,2]
[356661928,1742928646503,-2543.705079,0.00012345,2]
[356661929,1742928646513,-2543.705079,0.00012345,2]
[356661930,1742928646522,-2543.705079,0.00012345,2]
[356661931,1742928646531,-2543.705079,0.00012345,2]
[356661932,1742928646540,-500.0,0.00012373,2]
[356661933,1742928646549,-500.0,0.00012373,2]
[356661934,1742928646559,-502.66508552,0.00012373,2]
[356661935,1742928646568,-500.0,0.00012373,2]
[356661936,1742928646577,-500.0,0.00012373,2]
[356661937,1742928646587,-365.56208421,0.00012373,2]
[356661938,1742928646596,-500.0,0.00012373,2]
[356661939,1742928646605,-500.0,0.00012373,2]
[356661940,1742928646614,-500.0,0.00012373,2]
[356661941,1742928646623,-500.0,0.00012373,2]
[356661942,1742928646631,-500.0,0.00012373,2]
[356661943,1742928646641,-500.0,0.00012373,2]